[Event "Titled Tuesday Blitz August 16 Late 2022"]
[White "Vasquez Schroeder, Rodrigo"]
[Black "Kruckenhauser, Arthur"]
[WhiteFideId "3400042"]
[BlackFideId "1642812"]
[WhiteElo "2567"]
[BlackElo "2218"]
[Result "0-1"]
[Round "04"]
[TimeControl "180+1"]
[Date "2022.08.16"]
[WhiteClock "0:00:15"]
[BlackClock "0:00:05"]

1. e4 {[%clk 0:03:00]}  e5 {[%clk 0:02:52]} 2. Nf3 {[%clk 0:03:01]}  Nc6 {[%clk 0:02:53]} 3. Bb5 {[%clk 0:03:01]}  a6 {[%clk 0:02:52]} 4. Ba4 {[%clk 0:03:01]}  Nf6 {[%clk 0:02:52]} 5. O-O {[%clk 0:03:02]}  Nxe4 {[%clk 0:02:53]} 6. d4 {[%clk 0:03:01]}  b5 {[%clk 0:02:53]} 7. Bb3 {[%clk 0:03:02]}  d5 {[%clk 0:02:54]} 8. dxe5 {[%clk 0:03:02]}  Be6 {[%clk 0:02:54]} 9. c3 {[%clk 0:03:02]}  Bc5 {[%clk 0:02:54]} 10. Qd3 {[%clk 0:03:02]}  O-O {[%clk 0:02:37]} 11. Be3 {[%clk 0:03:02]}  f6 {[%clk 0:02:27]} 12. Nbd2 {[%clk 0:02:37]}  Nxd2 {[%clk 0:02:15]} 13. Qxd2 {[%clk 0:02:35]}  Bxe3 {[%clk 0:02:15]} 14. Qxe3 {[%clk 0:02:35]}  Nxe5 {[%clk 0:02:15]} 15. Nxe5 {[%clk 0:02:33]}  fxe5 {[%clk 0:02:16]} 16. Qxe5 {[%clk 0:02:34]}  Bf7 {[%clk 0:02:17]} 17. Rad1 {[%clk 0:02:31]}  c6 {[%clk 0:02:16]} 18. Rfe1 {[%clk 0:02:28]}  Qd7 {[%clk 0:02:11]} 19. Bc2 {[%clk 0:02:27]}  Rae8 {[%clk 0:02:09]} 20. Qd4 {[%clk 0:02:27]}  Rxe1+ {[%clk 0:02:08]} 21. Rxe1 {[%clk 0:02:27]}  Re8 {[%clk 0:02:08]} 22. Rxe8+ {[%clk 0:02:22]}  Qxe8 {[%clk 0:02:09]} 23. Kf1 {[%clk 0:02:19]}  Bg6 {[%clk 0:02:08]} 24. Bd1 {[%clk 0:02:15]}  a5 {[%clk 0:01:57]} 25. a4 {[%clk 0:02:09]}  bxa4 {[%clk 0:01:54]} 26. Bxa4 {[%clk 0:02:06]}  Qe6 {[%clk 0:01:48]} 27. f3 {[%clk 0:02:03]}  h6 {[%clk 0:01:43]} 28. Kf2 {[%clk 0:02:00]}  Qd6 {[%clk 0:01:23]} 29. Qb6 {[%clk 0:01:40]}  Qxh2 {[%clk 0:01:23]} 30. Bxc6 {[%clk 0:01:36]}  Qh4+ {[%clk 0:01:23]} 31. Ke2 {[%clk 0:01:31]}  Qc4+ {[%clk 0:00:58]} 32. Ke1 {[%clk 0:01:30]}  Kh7 {[%clk 0:00:43]} 33. Qb5 {[%clk 0:01:22]}  Qh4+ {[%clk 0:00:38]} 34. Kf1 {[%clk 0:01:15]}  d4 {[%clk 0:00:35]} 35. Qc4 {[%clk 0:00:58]}  Qh1+ {[%clk 0:00:22]} 36. Kf2 {[%clk 0:00:58]}  d3 {[%clk 0:00:15]} 37. Be4 {[%clk 0:00:53]}  Qh4+ {[%clk 0:00:10]} 38. Ke3 {[%clk 0:00:53]}  Qg5+ {[%clk 0:00:04]} 39. Kxd3 {[%clk 0:00:53]}  Qxg2 {[%clk 0:00:04]} 40. Bxg6+ {[%clk 0:00:46]}  Qxg6+ {[%clk 0:00:04]} 41. Ke3 {[%clk 0:00:47]}  Qg1+ {[%clk 0:00:04]} 42. Kd2 {[%clk 0:00:40]}  Qf2+ {[%clk 0:00:04]} 43. Qe2 {[%clk 0:00:40]}  Qxe2+ {[%clk 0:00:03]} 44. Kxe2 {[%clk 0:00:40]}  Kg6 {[%clk 0:00:04]} 45. b4 {[%clk 0:00:32]}  a4 {[%clk 0:00:02]} 46. b5 {[%clk 0:00:32]}  a3 {[%clk 0:00:02]} 47. b6 {[%clk 0:00:33]}  a2 {[%clk 0:00:02]} 48. b7 {[%clk 0:00:34]}  a1=Q {[%clk 0:00:03]} 49. b8=Q {[%clk 0:00:35]}  Qxc3 {[%clk 0:00:03]} 50. Qg3+ {[%clk 0:00:33]}  Kh7 {[%clk 0:00:03]} 51. Qf4 {[%clk 0:00:34]}  Qf6 {[%clk 0:00:04]} 52. Qe4+ {[%clk 0:00:34]}  Qg6 {[%clk 0:00:04]} 53. Qd5 {[%clk 0:00:34]}  h5 {[%clk 0:00:04]} 54. Kf2 {[%clk 0:00:34]}  Kh6 {[%clk 0:00:05]} 55. Qd4 {[%clk 0:00:33]}  Qg5 {[%clk 0:00:05]} 56. f4 {[%clk 0:00:27]}  Qh4+ {[%clk 0:00:05]} 57. Kf3 {[%clk 0:00:27]}  Qh3+ {[%clk 0:00:05]} 58. Ke4 {[%clk 0:00:26]}  Qg2+ {[%clk 0:00:05]} 59. Ke5 {[%clk 0:00:25]}  Qg6 {[%clk 0:00:04]} 60. Qf2 {[%clk 0:00:22]}  Qf6+ {[%clk 0:00:04]} 61. Ke4 {[%clk 0:00:23]}  h4 {[%clk 0:00:05]} 62. Kf3 {[%clk 0:00:21]}  g5 {[%clk 0:00:04]} 63. Kg4 {[%clk 0:00:21]}  Qe6+ {[%clk 0:00:04]} 64. f5 {[%clk 0:00:20]}  Qe4+ {[%clk 0:00:04]} 65. Kh3 {[%clk 0:00:21]}  Qh1+ {[%clk 0:00:04]} 66. Kg4 {[%clk 0:00:21]}  Qe4+ {[%clk 0:00:04]} 67. Kh3 {[%clk 0:00:21]}  Kh5 {[%clk 0:00:05]} 68. Qc5 {[%clk 0:00:15]}  Qh1# {[%clk 0:00:05]} 0-1


[Site "https://www.chess.com"]

[Event "Titled Tuesday Blitz August 16 Late 2022"]
[White "Wachinger, Guenther"]
[Black "Kopczynski, Michal"]
[WhiteFideId "4604261"]
[BlackFideId "1124200"]
[WhiteElo "2212"]
[BlackElo "2235"]
[Result "1/2-1/2"]
[Round "04"]
[TimeControl "180+1"]
[Date "2022.08.18"]
[WhiteClock "0:00:00"]
[BlackClock "0:00:00"]

1. e4 {[%clk 0:00:00]}  c5 {[%clk 0:00:00]} 2. Nf3 {[%clk 0:00:00]}  d6 {[%clk 0:00:00]} 3. d4 {[%clk 0:00:00]}  cxd4 {[%clk 0:00:00]} 4. Nxd4 {[%clk 0:00:00]}  Nf6 {[%clk 0:00:00]} 5. Nc3 {[%clk 0:00:00]}  g6 {[%clk 0:00:00]} 6. Be3 {[%clk 0:00:00]}  Bg7 {[%clk 0:00:00]} 7. f3 {[%clk 0:00:00]}  O-O {[%clk 0:00:00]} 8. Qd2 {[%clk 0:00:00]}  Nc6 {[%clk 0:00:00]} 9. O-O-O {[%clk 0:00:00]}  d5 {[%clk 0:00:00]} 10. Kb1 {[%clk 0:00:00]}  e5 {[%clk 0:00:00]} 11. Nxc6 {[%clk 0:00:00]}  bxc6 {[%clk 0:00:00]} 12. exd5 {[%clk 0:00:00]}  cxd5 {[%clk 0:00:00]} 13. Nxd5 {[%clk 0:00:00]}  Be6 {[%clk 0:00:00]} 14. Bc4 {[%clk 0:00:00]}  Rb8 {[%clk 0:00:00]} 15. Nxf6+ {[%clk 0:00:00]}  Qxf6 {[%clk 0:00:00]} 16. Bxe6 {[%clk 0:00:00]}  Qxe6 {[%clk 0:00:00]} 17. Qd5 {[%clk 0:00:00]}  e4 {[%clk 0:00:00]} 18. b3 {[%clk 0:00:00]}  Qa6 {[%clk 0:00:00]} 19. Qxe4 {[%clk 0:00:00]}  Rfe8 {[%clk 0:00:00]} 20. Qf4 {[%clk 0:00:00]}  Qa3 {[%clk 0:00:00]} 21. Bd4 {[%clk 0:00:00]}  Rb4 {[%clk 0:00:00]} 22. c3 {[%clk 0:00:00]}  Rxb3+ {[%clk 0:00:00]} 23. axb3 {[%clk 0:00:00]}  Qxb3+ {[%clk 0:00:00]} 24. Kc1 {[%clk 0:00:00]}  Qa3+ {[%clk 0:00:00]} 25. Kc2 {[%clk 0:00:00]}  Qa2+ {[%clk 0:00:00]} 26. Kc1 {[%clk 0:00:00]}  Qa3+ {[%clk 0:00:00]} 27. Kc2 {[%clk 0:00:00]}  Qa2+ {[%clk 0:00:00]} 28. Kc1 {[%clk 0:00:00]}  Qa3+ {[%clk 0:00:00]} 1/2-1/2


[Site "https://www.chess.com"]

[Event "Titled Tuesday Blitz August 16 Late 2022"]
[White "Winkels, Marcel"]
[Black "Capp, Stephen"]
[WhiteFideId "1003887"]
[BlackFideId "2027089"]
[WhiteElo "1900"]
[BlackElo "1920"]
[Result "0-1"]
[Round "04"]
[TimeControl "180+1"]
[Date "2022.08.18"]
[WhiteClock "0:00:00"]
[BlackClock "0:00:00"]

1. e4 {[%clk 0:00:00]}  e5 {[%clk 0:00:00]} 2. Nf3 {[%clk 0:00:00]}  d5 {[%clk 0:00:00]} 3. Nxe5 {[%clk 0:00:00]}  Bd6 {[%clk 0:00:00]} 4. d4 {[%clk 0:00:00]}  dxe4 {[%clk 0:00:00]} 5. Qh5 {[%clk 0:00:00]}  Qe7 {[%clk 0:00:00]} 6. Bc4 {[%clk 0:00:00]}  Be6 {[%clk 0:00:00]} 7. Bxe6 {[%clk 0:00:00]}  Qxe6 {[%clk 0:00:00]} 8. Qg4 {[%clk 0:00:00]}  Bxe5 {[%clk 0:00:00]} 9. Qxe6+ {[%clk 0:00:00]}  fxe6 {[%clk 0:00:00]} 10. dxe5 {[%clk 0:00:00]}  Nc6 {[%clk 0:00:00]} 11. Nc3 {[%clk 0:00:00]}  Nxe5 {[%clk 0:00:00]} 12. Nxe4 {[%clk 0:00:00]}  O-O-O {[%clk 0:00:00]} 13. O-O {[%clk 0:00:00]}  h6 {[%clk 0:00:00]} 14. Bf4 {[%clk 0:00:00]}  Nc6 {[%clk 0:00:00]} 15. Nc5 {[%clk 0:00:00]}  e5 {[%clk 0:00:00]} 16. Be3 {[%clk 0:00:00]}  Nf6 {[%clk 0:00:00]} 17. Rad1 {[%clk 0:00:00]}  Nd4 {[%clk 0:00:00]} 18. c3 {[%clk 0:00:00]}  Nf5 {[%clk 0:00:00]} 19. Ne6 {[%clk 0:00:00]}  Rde8 {[%clk 0:00:00]} 20. Nc5 {[%clk 0:00:00]}  Ng4 {[%clk 0:00:00]} 21. Rfe1 {[%clk 0:00:00]}  Ngxe3 {[%clk 0:00:00]} 22. fxe3 {[%clk 0:00:00]}  Nd6 {[%clk 0:00:00]} 23. e4 {[%clk 0:00:00]}  Rhf8 {[%clk 0:00:00]} 24. Rd2 {[%clk 0:00:00]}  b6 {[%clk 0:00:00]} 25. Nd3 {[%clk 0:00:00]}  Rf6 {[%clk 0:00:00]} 26. Rf2 {[%clk 0:00:00]}  c5 {[%clk 0:00:00]} 27. Rxf6 {[%clk 0:00:00]}  gxf6 {[%clk 0:00:00]} 28. Nf2 {[%clk 0:00:00]}  Nc4 {[%clk 0:00:00]} 29. b3 {[%clk 0:00:00]}  Nd6 {[%clk 0:00:00]} 30. Ng4 {[%clk 0:00:00]}  f5 {[%clk 0:00:00]} 31. exf5 {[%clk 0:00:00]}  Nxf5 {[%clk 0:00:00]} 32. Rxe5 {[%clk 0:00:00]}  Rf8 {[%clk 0:00:00]} 33. h3 {[%clk 0:00:00]}  h5 {[%clk 0:00:00]} 34. Nf2 {[%clk 0:00:00]}  h4 {[%clk 0:00:00]} 35. Ng4 {[%clk 0:00:00]}  Ng3 {[%clk 0:00:00]} 36. Re1 {[%clk 0:00:00]}  Rd8 {[%clk 0:00:00]} 37. a4 {[%clk 0:00:00]}  Rd3 {[%clk 0:00:00]} 38. Re7 {[%clk 0:00:00]}  Rd1+ {[%clk 0:00:00]} 39. Kf2 {[%clk 0:00:00]}  Rf1+ {[%clk 0:00:00]} 40. Ke3 {[%clk 0:00:00]}  Re1+ {[%clk 0:00:00]} 0-1


[Site "https://www.chess.com"]

[Event "Titled Tuesday Blitz August 16 Late 2022"]
[White "Xu, Jeffrey"]
[Black "Dilanyan, Grigor"]
[WhiteFideId "2617110"]
[BlackFideId "13303570"]
[WhiteElo "2047"]
[BlackElo "2264"]
[Result "0-1"]
[Round "04"]
[TimeControl "180+1"]
[Date "2022.08.18"]
[WhiteClock "0:00:00"]
[BlackClock "0:00:00"]

1. b4 {[%clk 0:00:00]}  d6 {[%clk 0:00:00]} 2. h3 {[%clk 0:00:00]}  e5 {[%clk 0:00:00]} 3. g4 {[%clk 0:00:00]}  h5 {[%clk 0:00:00]} 4. Bg2 {[%clk 0:00:00]}  hxg4 {[%clk 0:00:00]} 5. hxg4 {[%clk 0:00:00]}  Rxh1 {[%clk 0:00:00]} 6. Bxh1 {[%clk 0:00:00]}  Qh4 {[%clk 0:00:00]} 7. Bf3 {[%clk 0:00:00]}  e4 {[%clk 0:00:00]} 8. Bg2 {[%clk 0:00:00]}  Qxg4 {[%clk 0:00:00]} 9. Kf1 {[%clk 0:00:00]}  Nc6 {[%clk 0:00:00]} 10. b5 {[%clk 0:00:00]}  Ne5 {[%clk 0:00:00]} 11. Nc3 {[%clk 0:00:00]}  f5 {[%clk 0:00:00]} 12. d3 {[%clk 0:00:00]}  Nf6 {[%clk 0:00:00]} 13. dxe4 {[%clk 0:00:00]}  fxe4 {[%clk 0:00:00]} 14. Qd4 {[%clk 0:00:00]}  Bf5 {[%clk 0:00:00]} 15. Be3 {[%clk 0:00:00]}  a6 {[%clk 0:00:00]} 16. bxa6 {[%clk 0:00:00]}  Rxa6 {[%clk 0:00:00]} 17. Rb1 {[%clk 0:00:00]}  b6 {[%clk 0:00:00]} 18. Nd5 {[%clk 0:00:00]}  Nxd5 {[%clk 0:00:00]} 19. Qxd5 {[%clk 0:00:00]}  Ra5 {[%clk 0:00:00]} 20. Qb3 {[%clk 0:00:00]}  Be6 {[%clk 0:00:00]} 21. Qc3 {[%clk 0:00:00]}  Nc4 {[%clk 0:00:00]} 22. Bc1 {[%clk 0:00:00]}  Rxa2 {[%clk 0:00:00]} 23. Rb4 {[%clk 0:00:00]}  d5 {[%clk 0:00:00]} 24. Rxc4 {[%clk 0:00:00]}  dxc4 {[%clk 0:00:00]} 25. Qe5 {[%clk 0:00:00]}  Bd6 {[%clk 0:00:00]} 26. Qb5+ {[%clk 0:00:00]}  Kf7 {[%clk 0:00:00]} 27. Nh3 {[%clk 0:00:00]}  Ra1 {[%clk 0:00:00]} 28. Qb2 {[%clk 0:00:00]}  Be5 {[%clk 0:00:00]} 29. Qxa1 {[%clk 0:00:00]}  Bxa1 {[%clk 0:00:00]} 30. Ng5+ {[%clk 0:00:00]}  Ke7 {[%clk 0:00:00]} 31. Bh3 {[%clk 0:00:00]}  Qxh3+ {[%clk 0:00:00]} 32. Nxh3 {[%clk 0:00:00]}  Bxh3+ {[%clk 0:00:00]} 33. Ke1 {[%clk 0:00:00]}  Be6 {[%clk 0:00:00]} 34. Bf4 {[%clk 0:00:00]}  Kd7 {[%clk 0:00:00]} 35. Kd2 {[%clk 0:00:00]}  Bf6 {[%clk 0:00:00]} 36. f3 {[%clk 0:00:00]}  exf3 {[%clk 0:00:00]} 37. exf3 {[%clk 0:00:00]}  Bd5 {[%clk 0:00:00]} 38. Ke3 {[%clk 0:00:00]}  b5 {[%clk 0:00:00]} 39. Bg3 {[%clk 0:00:00]}  c5 {[%clk 0:00:00]} 40. Be1 {[%clk 0:00:00]}  Ke6 {[%clk 0:00:00]} 41. Bd2 {[%clk 0:00:00]}  b4 {[%clk 0:00:00]} 42. Bc1 {[%clk 0:00:00]}  b3 {[%clk 0:00:00]} 43. cxb3 {[%clk 0:00:00]}  cxb3 {[%clk 0:00:00]} 44. f4 {[%clk 0:00:00]}  b2 {[%clk 0:00:00]} 0-1


[Site "https://www.chess.com"]

[Event "Titled Tuesday Blitz August 16 Late 2022"]
[White "Zamorano, Jorge"]
[Black "Kashtanov, Ruslan"]
[WhiteFideId "173770"]
[BlackFideId "4124871"]
[WhiteElo "2331"]
[BlackElo "2168"]
[Result "1-0"]
[Round "04"]
[TimeControl "180+1"]
[Date "2022.08.18"]
[WhiteClock "0:00:00"]
[BlackClock "0:00:00"]

1. e4 {[%clk 0:00:00]}  c5 {[%clk 0:00:00]} 2. Nf3 {[%clk 0:00:00]}  e6 {[%clk 0:00:00]} 3. d4 {[%clk 0:00:00]}  cxd4 {[%clk 0:00:00]} 4. Nxd4 {[%clk 0:00:00]}  Nc6 {[%clk 0:00:00]} 5. Nxc6 {[%clk 0:00:00]}  bxc6 {[%clk 0:00:00]} 6. Bd3 {[%clk 0:00:00]}  Nf6 {[%clk 0:00:00]} 7. O-O {[%clk 0:00:00]}  d5 {[%clk 0:00:00]} 8. Nd2 {[%clk 0:00:00]}  Be7 {[%clk 0:00:00]} 9. Qe2 {[%clk 0:00:00]}  O-O {[%clk 0:00:00]} 10. c4 {[%clk 0:00:00]}  Bb7 {[%clk 0:00:00]} 11. f4 {[%clk 0:00:00]}  Qc7 {[%clk 0:00:00]} 12. e5 {[%clk 0:00:00]}  Nd7 {[%clk 0:00:00]} 13. Nf3 {[%clk 0:00:00]}  a5 {[%clk 0:00:00]} 14. Be3 {[%clk 0:00:00]}  Nc5 {[%clk 0:00:00]} 15. Bxc5 {[%clk 0:00:00]}  Bxc5+ {[%clk 0:00:00]} 16. Kh1 {[%clk 0:00:00]}  h6 {[%clk 0:00:00]} 17. Rac1 {[%clk 0:00:00]}  Qb6 {[%clk 0:00:00]} 18. Bb1 {[%clk 0:00:00]}  Be3 {[%clk 0:00:00]} 19. c5 {[%clk 0:00:00]} 1-0


[Site "https://www.chess.com"]

[Event "Titled Tuesday Blitz August 16 Late 2022"]
[White "Zeynalov, Farid"]
[Black "Buchenau, Frank"]
[WhiteFideId "13402250"]
[BlackFideId "4604350"]
[WhiteElo "2278"]
[BlackElo "2157"]
[Result "0-1"]
[Round "04"]
[TimeControl "180+1"]
[Date "2022.08.18"]
[WhiteClock "0:00:00"]
[BlackClock "0:00:00"]

1. d4 {[%clk 0:00:00]}  e6 {[%clk 0:00:00]} 2. c4 {[%clk 0:00:00]}  Nf6 {[%clk 0:00:00]} 3. Nf3 {[%clk 0:00:00]}  b6 {[%clk 0:00:00]} 4. g3 {[%clk 0:00:00]}  Bb7 {[%clk 0:00:00]} 5. Bg2 {[%clk 0:00:00]}  Be7 {[%clk 0:00:00]} 6. O-O {[%clk 0:00:00]}  O-O {[%clk 0:00:00]} 7. Nc3 {[%clk 0:00:00]}  Ne4 {[%clk 0:00:00]} 8. Qc2 {[%clk 0:00:00]}  Nxc3 {[%clk 0:00:00]} 9. Qxc3 {[%clk 0:00:00]}  f5 {[%clk 0:00:00]} 10. Rd1 {[%clk 0:00:00]}  Bf6 {[%clk 0:00:00]} 11. Qc2 {[%clk 0:00:00]}  Be4 {[%clk 0:00:00]} 12. Qb3 {[%clk 0:00:00]}  d6 {[%clk 0:00:00]} 13. Ne1 {[%clk 0:00:00]}  Bxg2 {[%clk 0:00:00]} 14. Nxg2 {[%clk 0:00:00]}  Nc6 {[%clk 0:00:00]} 15. e3 {[%clk 0:00:00]}  Qd7 {[%clk 0:00:00]} 16. Bd2 {[%clk 0:00:00]}  e5 {[%clk 0:00:00]} 17. Bc3 {[%clk 0:00:00]}  e4 {[%clk 0:00:00]} 18. Qc2 {[%clk 0:00:00]}  g5 {[%clk 0:00:00]} 19. b4 {[%clk 0:00:00]}  a5 {[%clk 0:00:00]} 20. b5 {[%clk 0:00:00]}  Ne7 {[%clk 0:00:00]} 21. a4 {[%clk 0:00:00]}  d5 {[%clk 0:00:00]} 22. c5 {[%clk 0:00:00]}  Ng6 {[%clk 0:00:00]} 23. Bb2 {[%clk 0:00:00]}  f4 {[%clk 0:00:00]} 24. cxb6 {[%clk 0:00:00]}  cxb6 {[%clk 0:00:00]} 25. Qc6 {[%clk 0:00:00]}  Qxc6 {[%clk 0:00:00]} 26. bxc6 {[%clk 0:00:00]}  f3 {[%clk 0:00:00]} 27. Ne1 {[%clk 0:00:00]}  Rac8 {[%clk 0:00:00]} 28. Rdc1 {[%clk 0:00:00]}  Rf7 {[%clk 0:00:00]} 29. Ba3 {[%clk 0:00:00]}  Rfc7 {[%clk 0:00:00]} 30. Rab1 {[%clk 0:00:00]}  Rxc6 {[%clk 0:00:00]} 31. Rxc6 {[%clk 0:00:00]}  Rxc6 {[%clk 0:00:00]} 32. Rb5 {[%clk 0:00:00]}  Be7 {[%clk 0:00:00]} 33. Bb2 {[%clk 0:00:00]}  Bb4 {[%clk 0:00:00]} 34. Kf1 {[%clk 0:00:00]}  Ne7 {[%clk 0:00:00]} 35. h3 {[%clk 0:00:00]}  Kf7 {[%clk 0:00:00]} 36. g4 {[%clk 0:00:00]}  Ke6 {[%clk 0:00:00]} 0-1


[Site "https://www.chess.com"]

[Event "Titled Tuesday Blitz August 16 Late 2022"]
[White "Zivkovic, Nemanja"]
[Black "Swiercz, Dariusz"]
[WhiteFideId "942154"]
[BlackFideId "1126881"]
[WhiteElo "2372"]
[BlackElo "2627"]
[Result "1-0"]
[Round "04"]
[TimeControl "180+1"]
[Date "2022.08.16"]
[WhiteClock "0:00:30"]
[BlackClock "0:00:03"]

1. e4 {[%clk 0:02:57]}  c5 {[%clk 0:03:00]} 2. Nf3 {[%clk 0:02:57]}  Nc6 {[%clk 0:03:00]} 3. g3 {[%clk 0:02:54]}  g6 {[%clk 0:03:00]} 4. Bg2 {[%clk 0:02:53]}  Bg7 {[%clk 0:03:01]} 5. O-O {[%clk 0:02:40]}  d6 {[%clk 0:03:01]} 6. d3 {[%clk 0:02:36]}  e5 {[%clk 0:02:58]} 7. Nc3 {[%clk 0:02:34]}  Nge7 {[%clk 0:02:59]} 8. Nd2 {[%clk 0:02:34]}  O-O {[%clk 0:02:57]} 9. Nc4 {[%clk 0:02:31]}  Rb8 {[%clk 0:02:45]} 10. a4 {[%clk 0:02:30]}  a6 {[%clk 0:02:43]} 11. a5 {[%clk 0:02:27]}  Be6 {[%clk 0:02:44]} 12. Nd5 {[%clk 0:02:25]}  Nb4 {[%clk 0:02:29]} 13. Nxb4 {[%clk 0:02:15]}  cxb4 {[%clk 0:02:30]} 14. Nb6 {[%clk 0:02:16]}  Nc6 {[%clk 0:02:09]} 15. Be3 {[%clk 0:02:15]}  f5 {[%clk 0:02:02]} 16. exf5 {[%clk 0:02:13]}  gxf5 {[%clk 0:02:03]} 17. f4 {[%clk 0:01:59]}  exf4 {[%clk 0:02:02]} 18. Rxf4 {[%clk 0:01:45]}  Bxb2 {[%clk 0:01:58]} 19. Rb1 {[%clk 0:01:45]}  Be5 {[%clk 0:01:58]} 20. Rh4 {[%clk 0:01:44]}  Bf6 {[%clk 0:01:57]} 21. Rf4 {[%clk 0:01:42]}  Bg5 {[%clk 0:01:49]} 22. Rf3 {[%clk 0:01:40]}  Qf6 {[%clk 0:01:29]} 23. Qd2 {[%clk 0:01:30]}  Bxe3+ {[%clk 0:01:23]} 24. Rxe3 {[%clk 0:01:27]}  Rbe8 {[%clk 0:01:24]} 25. Nd5 {[%clk 0:01:22]}  Bxd5 {[%clk 0:01:16]} 26. Bxd5+ {[%clk 0:01:22]}  Kg7 {[%clk 0:01:17]} 27. Bxc6 {[%clk 0:01:22]}  bxc6 {[%clk 0:01:15]} 28. Rxb4 {[%clk 0:01:22]}  Rxe3 {[%clk 0:01:10]} 29. Qxe3 {[%clk 0:01:23]}  Rf7 {[%clk 0:01:10]} 30. Qd4 {[%clk 0:01:16]}  c5 {[%clk 0:00:38]} 31. Qxf6+ {[%clk 0:01:14]}  Rxf6 {[%clk 0:00:39]} 32. Rb6 {[%clk 0:01:13]}  d5 {[%clk 0:00:39]} 33. Kf2 {[%clk 0:01:12]}  Kf7 {[%clk 0:00:29]} 34. Ke3 {[%clk 0:01:07]}  Re6+ {[%clk 0:00:23]} 35. Kf4 {[%clk 0:01:01]}  Re2 {[%clk 0:00:22]} 36. c4 {[%clk 0:00:53]}  dxc4 {[%clk 0:00:15]} 37. dxc4 {[%clk 0:00:54]}  Rxh2 {[%clk 0:00:16]} 38. Rxa6 {[%clk 0:00:50]}  Rc2 {[%clk 0:00:15]} 39. Kxf5 {[%clk 0:00:48]}  Rxc4 {[%clk 0:00:16]} 40. Ra7+ {[%clk 0:00:49]}  Kg8 {[%clk 0:00:10]} 41. Kf6 {[%clk 0:00:49]}  h5 {[%clk 0:00:10]} 42. Rc7 {[%clk 0:00:40]}  Rc3 {[%clk 0:00:03]} 43. a6 {[%clk 0:00:38]}  Rf3+ {[%clk 0:00:02]} 44. Ke5 {[%clk 0:00:32]}  Ra3 {[%clk 0:00:03]} 45. a7 {[%clk 0:00:32]}  c4 {[%clk 0:00:02]} 46. Rc8+ {[%clk 0:00:31]}  Kf7 {[%clk 0:00:03]} 47. a8=Q {[%clk 0:00:31]}  Rxa8 {[%clk 0:00:03]} 48. Rxa8 {[%clk 0:00:32]}  Kg6 {[%clk 0:00:03]} 49. Kf4 {[%clk 0:00:30]} 1-0


[Site "https://www.chess.com"]

[Event "Titled Tuesday Blitz August 16 Late 2022"]
[White "Zou, Chen"]
[Black "Rasulov, Vugar"]
[WhiteFideId "8610959"]
[BlackFideId "13402390"]
[WhiteElo "2276"]
[BlackElo "2509"]
[Result "0-1"]
[Round "04"]
[TimeControl "180+1"]
[Date "2022.08.16"]
[WhiteClock "0:00:06"]
[BlackClock "0:00:16"]

1. d4 {[%clk 0:03:00]}  Nf6 {[%clk 0:03:00]} 2. c4 {[%clk 0:02:54]}  g6 {[%clk 0:03:00]} 3. Nc3 {[%clk 0:02:49]}  d5 {[%clk 0:03:00]} 4. cxd5 {[%clk 0:02:49]}  Nxd5 {[%clk 0:03:01]} 5. e4 {[%clk 0:02:48]}  Nxc3 {[%clk 0:03:01]} 6. bxc3 {[%clk 0:02:47]}  Bg7 {[%clk 0:03:02]} 7. Bc4 {[%clk 0:02:43]}  c5 {[%clk 0:03:01]} 8. Ne2 {[%clk 0:02:43]}  Nc6 {[%clk 0:02:59]} 9. Be3 {[%clk 0:02:41]}  O-O {[%clk 0:02:58]} 10. O-O {[%clk 0:02:41]}  Na5 {[%clk 0:02:49]} 11. Bd3 {[%clk 0:02:39]}  b6 {[%clk 0:02:48]} 12. Rc1 {[%clk 0:02:38]}  Qc7 {[%clk 0:02:47]} 13. h4 {[%clk 0:02:34]}  e5 {[%clk 0:02:34]} 14. h5 {[%clk 0:02:25]}  Qe7 {[%clk 0:02:29]} 15. h6 {[%clk 0:02:19]}  Bh8 {[%clk 0:02:28]} 16. dxe5 {[%clk 0:01:53]}  Rd8 {[%clk 0:02:21]} 17. c4 {[%clk 0:01:40]}  Nc6 {[%clk 0:02:11]} 18. f4 {[%clk 0:01:37]}  Nb4 {[%clk 0:02:11]} 19. Rc3 {[%clk 0:01:35]}  Bb7 {[%clk 0:02:05]} 20. a3 {[%clk 0:01:27]}  Nxd3 {[%clk 0:02:03]} 21. Rxd3 {[%clk 0:01:28]}  Bxe4 {[%clk 0:02:03]} 22. Rxd8+ {[%clk 0:01:28]}  Rxd8 {[%clk 0:02:04]} 23. Qe1 {[%clk 0:01:26]}  Bd3 {[%clk 0:02:02]} 24. Rf3 {[%clk 0:01:07]}  Bxc4 {[%clk 0:02:01]} 25. Nc3 {[%clk 0:01:04]}  f6 {[%clk 0:01:50]} 26. Ne4 {[%clk 0:00:59]}  Bd5 {[%clk 0:01:46]} 27. Nxf6+ {[%clk 0:00:57]}  Bxf6 {[%clk 0:01:46]} 28. exf6 {[%clk 0:00:58]}  Qxf6 {[%clk 0:01:39]} 29. Rg3 {[%clk 0:00:58]}  Re8 {[%clk 0:01:28]} 30. Qf2 {[%clk 0:00:54]}  Be4 {[%clk 0:01:14]} 31. Bd2 {[%clk 0:00:49]}  Rd8 {[%clk 0:01:04]} 32. Re3 {[%clk 0:00:45]}  Bc6 {[%clk 0:00:30]} 33. Bc3 {[%clk 0:00:39]}  Rd1+ {[%clk 0:00:25]} 34. Re1 {[%clk 0:00:36]}  Qd6 {[%clk 0:00:21]} 35. Be5 {[%clk 0:00:16]}  Qd5 {[%clk 0:00:18]} 36. Rxd1 {[%clk 0:00:10]}  Qxd1+ {[%clk 0:00:19]} 37. Kh2 {[%clk 0:00:11]}  Kf7 {[%clk 0:00:19]} 38. Qh4 {[%clk 0:00:07]}  Qh5 {[%clk 0:00:18]} 39. Qxh5 {[%clk 0:00:08]}  gxh5 {[%clk 0:00:19]} 40. Bb8 {[%clk 0:00:08]}  c4 {[%clk 0:00:12]} 41. Bxa7 {[%clk 0:00:07]}  b5 {[%clk 0:00:13]} 42. Kg3 {[%clk 0:00:04]}  Ke6 {[%clk 0:00:13]} 43. Kf2 {[%clk 0:00:04]}  h4 {[%clk 0:00:12]} 44. Bb6 {[%clk 0:00:02]}  Kf5 {[%clk 0:00:12]} 45. Ke3 {[%clk 0:00:01]}  Bxg2 {[%clk 0:00:12]} 46. Kf2 {[%clk 0:00:01]}  h3 {[%clk 0:00:12]} 47. Kg3 {[%clk 0:00:01]}  c3 {[%clk 0:00:12]} 48. Be3 {[%clk 0:00:01]}  c2 {[%clk 0:00:13]} 49. Bc1 {[%clk 0:00:02]}  Ke4 {[%clk 0:00:12]} 50. Kh2 {[%clk 0:00:02]}  Kd3 {[%clk 0:00:10]} 51. f5 {[%clk 0:00:03]}  Ke2 {[%clk 0:00:11]} 52. f6 {[%clk 0:00:03]}  Bd5 {[%clk 0:00:11]} 53. Kxh3 {[%clk 0:00:03]}  Kd1 {[%clk 0:00:12]} 54. Bf4 {[%clk 0:00:02]}  c1=Q {[%clk 0:00:13]} 55. Bxc1 {[%clk 0:00:03]}  Kxc1 {[%clk 0:00:14]} 56. Kh4 {[%clk 0:00:03]}  Kb2 {[%clk 0:00:14]} 57. Kg4 {[%clk 0:00:02]}  Kxa3 {[%clk 0:00:15]} 58. Kf5 {[%clk 0:00:03]}  b4 {[%clk 0:00:15]} 59. Ke5 {[%clk 0:00:04]}  Bf7 {[%clk 0:00:13]} 60. Kd6 {[%clk 0:00:05]}  b3 {[%clk 0:00:13]} 61. Ke7 {[%clk 0:00:05]}  Bg6 {[%clk 0:00:14]} 62. f7 {[%clk 0:00:04]}  Bxf7 {[%clk 0:00:14]} 63. Kxf7 {[%clk 0:00:05]}  b2 {[%clk 0:00:15]} 64. Kg8 {[%clk 0:00:05]}  b1=Q {[%clk 0:00:16]} 65. Kh8 {[%clk 0:00:06]}  Kb4 {[%clk 0:00:16]} 0-1


[Site "https://www.chess.com"]